[Event "*** Titled Tuesday Blitz"]
[Site "Chess.com"]
[Date "2020.12.29"]
[Round "1"]
[White "geordie_derraugh"]
[Black "Michaelson_11"]
[Result "1-0"]
[WhiteElo "2532"]
[BlackElo "2199"]
[TimeControl "180+1"]
[EndTime "10:06:17 PST"]
[Termination "geordie_derraugh won by resignation"]

1. e4 {[%clk 0:03:00.9]} 1... e6 {[%clk 0:02:58.2]} 2. d4 {[%clk 0:03:00.2]}
2... d5 {[%clk 0:02:58.6]} 3. Nd2 {[%clk 0:02:59.8]} 3... c5 {[%clk 0:02:56.7]}
4. Ngf3 {[%clk 0:02:59.3]} 4... Nc6 {[%clk 0:02:55]} 5. exd5 {[%clk 0:02:59.1]}
5... exd5 {[%clk 0:02:55.9]} 6. Bb5 {[%clk 0:02:59.1]} 6... Qe7+ {[%clk
0:02:55.7]} 7. Be2 {[%clk 0:02:55.5]} 7... Qc7 {[%clk 0:02:55.1]} 8. O-O {[%clk
0:02:52.2]} 8... Nf6 {[%clk 0:02:54.7]} 9. Re1 {[%clk 0:02:51]} 9... Be6 {[%clk
0:02:54.7]} 10. Nb3 {[%clk 0:02:41]} 10... c4 {[%clk 0:02:32.8]} 11. Nbd2 {[%clk
0:02:36.2]} 11... Bd6 {[%clk 0:02:31]} 12. b3 {[%clk 0:02:27.1]} 12... c3 {[%clk
0:02:25]} 13. Nb1 {[%clk 0:02:26.1]} 13... Ne7 {[%clk 0:02:12.9]} 14. Bg5 {[%clk
0:02:23.5]} 14... Ne4 {[%clk 0:02:07.5]} 15. Bxe7 {[%clk 0:02:11.7]} 15... Kxe7
{[%clk 0:02:03.4]} 16. Bd3 {[%clk 0:02:11.8]} 16... f5 {[%clk 0:01:59.8]} 17.
Ne5 {[%clk 0:02:04.3]} 17... Bxe5 {[%clk 0:01:50.9]} 18. dxe5 {[%clk 0:02:03.8]}
18... Qxe5 {[%clk 0:01:50.8]} 19. Bf1 {[%clk 0:01:42.6]} 19... Qf4 {[%clk
0:01:03.4]} 20. f3 {[%clk 0:01:36]} 20... Nd2 {[%clk 0:01:03.1]} 21. Qe2 {[%clk
0:01:08.6]} 21... Rhe8 {[%clk 0:00:47.7]} 22. Nxc3 {[%clk 0:00:49.2]} 22... Kf7
{[%clk 0:00:45.9]} 23. Qd3 {[%clk 0:00:43.4]} 23... Nxf1 {[%clk 0:00:39]} 24.
Rxf1 {[%clk 0:00:44.3]} 24... d4 {[%clk 0:00:32.2]} 25. Nb5 {[%clk 0:00:42.4]}
25... Red8 {[%clk 0:00:13.3]} 26. g3 {[%clk 0:00:41.2]} 26... Qxf3 {[%clk
0:00:13.1]} 27. Rxf3 {[%clk 0:00:40]} 1-0

[Event "*** Titled Tuesday Blitz"]
[Site "Chess.com"]
[Date "2020.12.29"]
[Round "1"]
[White "PSvidler"]
[Black "Moon_stone123"]
[Result "0-1"]
[WhiteElo "2817"]
[BlackElo "2450"]
[TimeControl "180+1"]
[EndTime "10:06:19 PST"]
[Termination "Moon_stone123 won by resignation"]

1. e4 {[%clk 0:02:59.5]} 1... c5 {[%clk 0:02:58.4]} 2. Nf3 {[%clk 0:02:57.1]}
2... d6 {[%clk 0:02:58.6]} 3. d4 {[%clk 0:02:56.9]} 3... cxd4 {[%clk 0:02:59.5]}
4. Nxd4 {[%clk 0:02:57.3]} 4... Nf6 {[%clk 0:02:59.7]} 5. Nc3 {[%clk 0:02:58.2]}
5... g6 {[%clk 0:02:59.8]} 6. Be3 {[%clk 0:02:51.2]} 6... Bg7 {[%clk 0:02:59.6]}
7. f3 {[%clk 0:02:51.5]} 7... Nc6 {[%clk 0:02:59.8]} 8. Qd2 {[%clk 0:02:51.6]}
8... O-O {[%clk 0:02:59.3]} 9. O-O-O {[%clk 0:02:50.4]} 9... Nxd4 {[%clk
0:02:59.3]} 10. Bxd4 {[%clk 0:02:49.7]} 10... Be6 {[%clk 0:03:00.2]} 11. g4
{[%clk 0:02:26.8]} 11... Qa5 {[%clk 0:02:59.2]} 12. Kb1 {[%clk 0:02:26.9]} 12...
Rfc8 {[%clk 0:02:58.9]} 13. Nd5 {[%clk 0:02:25.2]} 13... Qxd2 {[%clk 0:02:58.4]}
14. Nxf6+ {[%clk 0:01:53.9]} 14... Bxf6 {[%clk 0:02:59.3]} 15. Rxd2 {[%clk
0:01:54]} 15... Bxd4 {[%clk 0:02:58.8]} 16. Rxd4 {[%clk 0:01:54]} 16... g5
{[%clk 0:02:58.7]} 17. h4 {[%clk 0:01:53.4]} 17... h6 {[%clk 0:02:57.6]} 18.
hxg5 {[%clk 0:01:53.4]} 18... hxg5 {[%clk 0:02:58.5]} 19. Rh5 {[%clk 0:01:52.8]}
19... f6 {[%clk 0:02:58.2]} 20. Rh2 {[%clk 0:01:49]} 20... Kg7 {[%clk
0:02:56.4]} 21. b3 {[%clk 0:01:47.4]} 21... Rh8 {[%clk 0:02:55.3]} 22. Rdd2
{[%clk 0:01:47.1]} 22... Rh4 {[%clk 0:02:49.1]} 23. Rxh4 {[%clk 0:01:44.2]}
23... gxh4 {[%clk 0:02:50]} 24. Rh2 {[%clk 0:01:44]} 24... Rh8 {[%clk
0:02:50.5]} 25. Be2 {[%clk 0:01:43.3]} 25... d5 {[%clk 0:02:30.2]} 26. exd5
{[%clk 0:01:37.2]} 26... Bxd5 {[%clk 0:02:31.1]} 27. f4 {[%clk 0:01:37]} 27...
e5 {[%clk 0:02:05.2]} 28. f5 {[%clk 0:01:35.4]} 28... h3 {[%clk 0:01:58.2]} 29.
Bf1 {[%clk 0:01:33.5]} 29... Bf3 {[%clk 0:01:58.4]} 30. Rxh3 {[%clk 0:01:31.7]}
30... Rxh3 {[%clk 0:01:58.9]} 31. Bxh3 {[%clk 0:01:29.6]} 31... Kh6 {[%clk
0:01:50.6]} 32. Kc1 {[%clk 0:01:23.8]} 32... Kg5 {[%clk 0:01:49.8]} 33. Kd2
{[%clk 0:01:23.9]} 33... Bxg4 {[%clk 0:01:49.8]} 34. Bg2 {[%clk 0:01:23.9]}
34... b6 {[%clk 0:01:47.2]} 35. Ke3 {[%clk 0:01:20.2]} 35... Bxf5 {[%clk
0:01:46.9]} 36. c4 {[%clk 0:01:20]} 36... Bb1 {[%clk 0:01:45.7]} 37. b4 {[%clk
0:01:17.9]} 37... Bxa2 {[%clk 0:01:41.6]} 38. c5 {[%clk 0:01:18.1]} 38... bxc5
{[%clk 0:01:42.5]} 39. bxc5 {[%clk 0:01:18.1]} 39... Be6 {[%clk 0:01:39.7]} 40.
Bb7 {[%clk 0:01:17.3]} 40... a5 {[%clk 0:01:29.8]} 41. c6 {[%clk 0:01:17.5]}
41... Bd5 {[%clk 0:01:27.6]} 42. Ba8 {[%clk 0:01:17.2]} 42... Be6 {[%clk
0:01:20.1]} 43. Bb7 {[%clk 0:01:16.7]} 43... f5 {[%clk 0:01:18.2]} 44. c7 {[%clk
0:01:16.5]} 44... a4 {[%clk 0:01:14.1]} 45. c8=Q {[%clk 0:01:15.5]} 45... Bxc8
{[%clk 0:01:13.9]} 46. Bxc8 {[%clk 0:01:15.9]} 46... a3 {[%clk 0:01:13.2]} 47.
Be6 {[%clk 0:01:15.7]} 47... Kg4 {[%clk 0:01:10.7]} 48. Kf2 {[%clk 0:01:02.2]}
48... Kf4 {[%clk 0:01:09.8]} 49. Ba2 {[%clk 0:00:56.6]} 49... Ke4 {[%clk
0:01:09.4]} 50. Ke2 {[%clk 0:00:56.5]} 50... Kd4 {[%clk 0:01:08.7]} 51. Kd2
{[%clk 0:00:56.3]} 51... e4 {[%clk 0:01:08]} 52. Bg8 {[%clk 0:00:49.7]} 52... f4
{[%clk 0:01:07.5]} 53. Ba2 {[%clk 0:00:48.4]} 53... f3 {[%clk 0:01:07.1]} 0-1

[Event "*** Titled Tuesday Blitz"]
[Site "Chess.com"]
[Date "2020.12.29"]
[Round "1"]
[White "Borsuk_Konstantin"]
[Black "Alekseyviktorovich"]
[Result "1-0"]
[WhiteElo "2643"]
[BlackElo "2336"]
[TimeControl "180+1"]
[EndTime "10:06:19 PST"]
[Termination "Borsuk_Konstantin won by resignation"]

1. d4 {[%clk 0:03:00.9]} 1... d5 {[%clk 0:02:56.3]} 2. c4 {[%clk 0:03:01.1]}
2... c6 {[%clk 0:02:55.4]} 3. Nc3 {[%clk 0:03:01]} 3... Nf6 {[%clk 0:02:54.3]}
4. e3 {[%clk 0:03:00.5]} 4... Bg4 {[%clk 0:02:49.7]} 5. Qb3 {[%clk 0:02:55.4]}
5... Qd7 {[%clk 0:02:47.6]} 6. h3 {[%clk 0:02:47.9]} 6... Be6 {[%clk 0:02:44.7]}
7. Nf3 {[%clk 0:02:44.4]} 7... dxc4 {[%clk 0:02:42.8]} 8. Bxc4 {[%clk
0:02:42.6]} 8... Bxc4 {[%clk 0:02:42.5]} 9. Qxc4 {[%clk 0:02:43.5]} 9... e6
{[%clk 0:02:42.4]} 10. O-O {[%clk 0:02:38.7]} 10... Be7 {[%clk 0:02:41.9]} 11.
e4 {[%clk 0:02:37.3]} 11... O-O {[%clk 0:02:40.5]} 12. Ne5 {[%clk 0:02:35.4]}
12... Qd8 {[%clk 0:02:37.4]} 13. Be3 {[%clk 0:02:28.7]} 13... Nbd7 {[%clk
0:02:36.8]} 14. Rfd1 {[%clk 0:02:22.8]} 14... Qa5 {[%clk 0:02:29.8]} 15. f4
{[%clk 0:02:14.2]} 15... Rad8 {[%clk 0:02:26.9]} 16. Qb3 {[%clk 0:02:12.1]}
16... Qb6 {[%clk 0:02:22.9]} 17. Qxb6 {[%clk 0:02:04.4]} 17... Nxb6 {[%clk
0:02:14.6]} 18. Kf2 {[%clk 0:02:01.6]} 18... Nfd7 {[%clk 0:02:11.4]} 19. b3
{[%clk 0:01:53.7]} 19... f6 {[%clk 0:02:11]} 20. Nd3 {[%clk 0:01:52.3]} 20...
Rfe8 {[%clk 0:02:00.8]} 21. g4 {[%clk 0:01:51.6]} 21... Bf8 {[%clk 0:02:00.6]}
22. Kf3 {[%clk 0:01:49]} 22... Rc8 {[%clk 0:01:47.1]} 23. Rac1 {[%clk
0:01:35.5]} 23... Ba3 {[%clk 0:01:44.9]} 24. Rc2 {[%clk 0:01:35.3]} 24... c5
{[%clk 0:01:43.8]} 25. Nb5 {[%clk 0:01:28.8]} 25... cxd4 {[%clk 0:01:40.3]} 26.
Rxc8 {[%clk 0:01:28]} 26... Rxc8 {[%clk 0:01:39.7]} 27. Bxd4 {[%clk 0:01:23.8]}
27... Be7 {[%clk 0:01:33.2]} 28. a4 {[%clk 0:01:12.7]} 28... a6 {[%clk
0:01:33.2]} 29. Nc3 {[%clk 0:01:10.6]} 29... Kf7 {[%clk 0:01:29.2]} 30. h4
{[%clk 0:00:49.5]} 30... Bd6 {[%clk 0:01:23.3]} 31. e5 {[%clk 0:00:42.7]} 31...
Be7 {[%clk 0:01:22.6]} 32. a5 {[%clk 0:00:24.4]} 32... Na8 {[%clk 0:01:20]} 33.
f5 {[%clk 0:00:24.1]} 33... Nc7 {[%clk 0:01:17.1]} 34. exf6 {[%clk 0:00:22.9]}
34... gxf6 {[%clk 0:01:15.1]} 35. Ne4 {[%clk 0:00:19.8]} 35... e5 {[%clk
0:01:14.5]} 36. Be3 {[%clk 0:00:19.7]} 36... Nd5 {[%clk 0:01:13]} 37. g5 {[%clk
0:00:19.6]} 37... Nxe3 {[%clk 0:01:12]} 38. Kxe3 {[%clk 0:00:19.6]} 38... Rc3
{[%clk 0:01:11.6]} 39. Nxc3 {[%clk 0:00:18.9]} 39... Nc5 {[%clk 0:01:10.7]} 40.
Nxc5 {[%clk 0:00:18.6]} 40... Bxc5+ {[%clk 0:01:10.9]} 41. Ke4 {[%clk
0:00:18.9]} 41... Bd4 {[%clk 0:01:11.3]} 42. Nd5 {[%clk 0:00:18.8]} 1-0

[Event "*** Titled Tuesday Blitz"]
[Site "Chess.com"]
[Date "2020.12.29"]
[Round "1"]
[White "timator"]
[Black "Xeslu"]
[Result "1-0"]
[WhiteElo "2596"]
[BlackElo "2297"]
[TimeControl "180+1"]
[EndTime "10:06:19 PST"]
[Termination "timator won on time"]

1. Nf3 {[%clk 0:02:56.8]} 1... Nf6 {[%clk 0:02:57.7]} 2. c4 {[%clk 0:02:56.8]}
2... d6 {[%clk 0:02:57.3]} 3. d4 {[%clk 0:02:56.7]} 3... g6 {[%clk 0:02:57.2]}
4. g3 {[%clk 0:02:57.6]} 4... Bg7 {[%clk 0:02:57]} 5. Bg2 {[%clk 0:02:58.3]}
5... O-O {[%clk 0:02:57.3]} 6. O-O {[%clk 0:02:59.2]} 6... Nbd7 {[%clk
0:02:53.6]} 7. Nc3 {[%clk 0:02:58.8]} 7... e5 {[%clk 0:02:50.3]} 8. e4 {[%clk
0:02:59.2]} 8... exd4 {[%clk 0:02:45.8]} 9. Nxd4 {[%clk 0:03:00.1]} 9... Re8
{[%clk 0:02:46.2]} 10. Re1 {[%clk 0:03:00.2]} 10... Nc5 {[%clk 0:02:45.4]} 11.
h3 {[%clk 0:02:51.9]} 11... a5 {[%clk 0:02:44.5]} 12. Ndb5 {[%clk 0:02:27.2]}
12... Bd7 {[%clk 0:02:38.6]} 13. Bg5 {[%clk 0:02:23.1]} 13... Bc6 {[%clk
0:02:15.2]} 14. e5 {[%clk 0:01:52.5]} 14... Rxe5 {[%clk 0:01:52.3]} 15. Rxe5
{[%clk 0:01:44.1]} 15... dxe5 {[%clk 0:01:46.9]} 16. Qxd8+ {[%clk 0:01:45]}
16... Rxd8 {[%clk 0:01:46.1]} 17. Nxc7 {[%clk 0:01:45.5]} 17... Bxg2 {[%clk
0:01:27.4]} 18. Kxg2 {[%clk 0:01:43.7]} 18... h6 {[%clk 0:01:27.3]} 19. Bxf6
{[%clk 0:01:37]} 19... Bxf6 {[%clk 0:01:27.8]} 20. N7d5 {[%clk 0:01:37.7]} 20...
Bg7 {[%clk 0:01:20.6]} 21. Rd1 {[%clk 0:01:31.9]} 21... Kf8 {[%clk 0:01:20.2]}
22. a3 {[%clk 0:01:12.3]} 22... a4 {[%clk 0:00:58.5]} 23. f3 {[%clk 0:00:39.9]}
1-0

[Event "*** Titled Tuesday Blitz"]
[Site "Chess.com"]
[Date "2020.12.29"]
[Round "1"]
[White "Natalya_Buksa"]
[Black "Sacbutt"]
[Result "1-0"]
[WhiteElo "2539"]
[BlackElo "2214"]
[TimeControl "180+1"]
[EndTime "10:06:19 PST"]
[Termination "Natalya_Buksa won by checkmate"]

1. d4 {[%clk 0:02:57.7]} 1... Nf6 {[%clk 0:02:59.3]} 2. Nc3 {[%clk 0:02:56.9]}
2... d5 {[%clk 0:02:58.2]} 3. Bf4 {[%clk 0:02:56.3]} 3... Bf5 {[%clk 0:02:56.8]}
4. e3 {[%clk 0:02:54.8]} 4... e6 {[%clk 0:02:55.6]} 5. Nf3 {[%clk 0:02:53.6]}
5... c6 {[%clk 0:02:46.9]} 6. Ne5 {[%clk 0:02:52.8]} 6... Nbd7 {[%clk
0:02:43.3]} 7. g4 {[%clk 0:02:52.4]} 7... Bg6 {[%clk 0:02:39.9]} 8. h4 {[%clk
0:02:51.5]} 8... h6 {[%clk 0:02:26.4]} 9. Nxg6 {[%clk 0:02:50.8]} 9... fxg6
{[%clk 0:02:27.3]} 10. Bd3 {[%clk 0:02:49.7]} 10... Kf7 {[%clk 0:02:26.3]} 11.
Qf3 {[%clk 0:02:44.3]} 11... Qe8 {[%clk 0:02:16.5]} 12. O-O-O {[%clk 0:02:41.4]}
12... Ke7 {[%clk 0:02:09.5]} 13. g5 {[%clk 0:02:31.8]} 13... Nh5 {[%clk
0:02:01.1]} 14. gxh6 {[%clk 0:02:20.5]} 14... Nxf4 {[%clk 0:01:54.2]} 15. Qxf4
{[%clk 0:02:20.2]} 15... gxh6 {[%clk 0:01:46.3]} 16. Rhg1 {[%clk 0:02:19]} 16...
Rg8 {[%clk 0:01:45.8]} 17. e4 {[%clk 0:02:17.3]} 17... Qf7 {[%clk 0:01:39]} 18.
Qc7 {[%clk 0:02:12.9]} 18... Rb8 {[%clk 0:01:24.8]} 19. exd5 {[%clk 0:02:09.5]}
19... cxd5 {[%clk 0:01:20.3]} 20. Rde1 {[%clk 0:01:55.2]} 20... Kf6 {[%clk
0:01:20.1]} 21. Qg3 {[%clk 0:01:48.9]} 21... Bb4 {[%clk 0:01:13.6]} 22. Qf4+
{[%clk 0:01:27.3]} 22... Kg7 {[%clk 0:01:12.2]} 23. Rxg6+ {[%clk 0:01:27.3]}
23... Kf8 {[%clk 0:01:07.3]} 24. Qxh6+ {[%clk 0:01:25.9]} 24... Ke7 {[%clk
0:01:00.7]} 25. Rgxe6+ {[%clk 0:01:25.7]} 25... Kd8 {[%clk 0:01:00.9]} 26. Qh7
{[%clk 0:01:02]} 26... Qf4+ {[%clk 0:00:36.4]} 27. Kb1 {[%clk 0:01:01.3]} 27...
Rf8 {[%clk 0:00:25.5]} 28. Nxd5 {[%clk 0:00:57.4]} 28... Qxf2 {[%clk 0:00:20.2]}
29. c3 {[%clk 0:00:53.7]} 29... Ba5 {[%clk 0:00:17.6]} 30. Re8+ {[%clk 0:00:45]}
30... Rxe8 {[%clk 0:00:16.1]} 31. Rxe8+ {[%clk 0:00:45.5]} 31... Kxe8 {[%clk
0:00:16.3]} 32. Qe7# {[%clk 0:00:46.1]} 1-0

[Event "*** Titled Tuesday Blitz"]
[Site "Chess.com"]
[Date "2020.12.29"]
[Round "1"]
[White "Eloist"]
[Black "ftorodent"]
[Result "0-1"]
[WhiteElo "2337"]
[BlackElo "2645"]
[TimeControl "180+1"]
[EndTime "10:06:20 PST"]
[Termination "ftorodent won on time"]

1. e4 {[%clk 0:02:59.7]} 1... c5 {[%clk 0:02:58.1]} 2. Nf3 {[%clk 0:02:58.5]}
2... e6 {[%clk 0:02:58.3]} 3. d4 {[%clk 0:02:55.1]} 3... cxd4 {[%clk 0:02:58.3]}
4. Nxd4 {[%clk 0:02:54.6]} 4... a6 {[%clk 0:02:58.6]} 5. Bd3 {[%clk 0:02:52.1]}
5... Bc5 {[%clk 0:02:57.6]} 6. Nb3 {[%clk 0:02:48.3]} 6... Be7 {[%clk
0:02:57.5]} 7. O-O {[%clk 0:02:25]} 7... d6 {[%clk 0:02:56.4]} 8. Qg4 {[%clk
0:02:15.2]} 8... g6 {[%clk 0:02:55.1]} 9. Qe2 {[%clk 0:02:12.8]} 9... Nc6 {[%clk
0:02:52.7]} 10. f4 {[%clk 0:02:09.2]} 10... Nf6 {[%clk 0:02:50.2]} 11. f5 {[%clk
0:01:56.3]} 11... Ne5 {[%clk 0:02:44.7]} 12. h3 {[%clk 0:01:46.2]} 12... exf5
{[%clk 0:02:29.7]} 13. exf5 {[%clk 0:01:30.2]} 13... Nxd3 {[%clk 0:02:29.5]} 14.
cxd3 {[%clk 0:01:07.9]} 14... Bxf5 {[%clk 0:02:29.3]} 15. Rxf5 {[%clk
0:00:43.1]} 15... gxf5 {[%clk 0:02:28.9]} 16. Bg5 {[%clk 0:00:40.5]} 16... O-O
{[%clk 0:02:20]} 17. Nc3 {[%clk 0:00:33.5]} 17... Re8 {[%clk 0:02:13.4]} 18. Qf3
{[%clk 0:00:26.1]} 18... Kh8 {[%clk 0:01:46.7]} 19. Re1 {[%clk 0:00:19]} 19...
Ng8 {[%clk 0:01:43.6]} 20. Bf4 {[%clk 0:00:07.9]} 20... Qd7 {[%clk 0:01:34]} 21.
Nd5 {[%clk 0:00:05.9]} 21... Bf8 {[%clk 0:01:33.1]} 22. Be3 {[%clk 0:00:03.5]}
22... Bg7 {[%clk 0:00:48.7]} 23. Nb6 {[%clk 0:00:02]} 23... Qc6 {[%clk
0:00:47.5]} 24. Qxc6 {[%clk 0:00:01.2]} 24... bxc6 {[%clk 0:00:47.7]} 25. Nxa8
{[%clk 0:00:01.5]} 25... Rxa8 {[%clk 0:00:48.1]} 0-1

[Event "*** Titled Tuesday Blitz"]
[Site "Chess.com"]
[Date "2020.12.29"]
[Round "1"]
[White "Heineccius"]
[Black "Olga_Zhuravleva"]
[Result "1-0"]
[WhiteElo "2589"]
[BlackElo "2291"]
[TimeControl "180+1"]
[EndTime "10:06:26 PST"]
[Termination "Heineccius won by checkmate"]

1. d4 {[%clk 0:03:00.5]} 1... g6 {[%clk 0:02:04.1]} 2. c4 {[%clk 0:02:57.7]}
2... Bg7 {[%clk 0:02:00.2]} 3. Nc3 {[%clk 0:02:57.9]} 3... d6 {[%clk 0:02:00.7]}
4. Nf3 {[%clk 0:02:56.9]} 4... Nc6 {[%clk 0:01:59.8]} 5. g3 {[%clk 0:02:55.3]}
5... e5 {[%clk 0:01:58.5]} 6. d5 {[%clk 0:02:39.9]} 6... Nce7 {[%clk 0:01:57.6]}
7. e4 {[%clk 0:02:36.2]} 7... h6 {[%clk 0:01:57.4]} 8. Bg2 {[%clk 0:02:30.3]}
8... f5 {[%clk 0:01:56.9]} 9. O-O {[%clk 0:02:28.5]} 9... Nf6 {[%clk 0:01:56.6]}
10. Ne1 {[%clk 0:02:23.2]} 10... O-O {[%clk 0:01:54.9]} 11. Nd3 {[%clk
0:02:23.5]} 11... Kh8 {[%clk 0:01:47]} 12. f4 {[%clk 0:02:20.4]} 12... exf4
{[%clk 0:01:28]} 13. Nxf4 {[%clk 0:02:12.7]} 13... g5 {[%clk 0:01:25.7]} 14. Ne6
{[%clk 0:02:09.5]} 14... Bxe6 {[%clk 0:01:24.5]} 15. dxe6 {[%clk 0:02:10.4]}
15... fxe4 {[%clk 0:01:19.6]} 16. Nxe4 {[%clk 0:02:05.5]} 16... Nc6 {[%clk
0:01:16.5]} 17. Nc3 {[%clk 0:01:43.3]} 17... Ne7 {[%clk 0:01:06.6]} 18. Qd3
{[%clk 0:01:21.9]} 18... Rb8 {[%clk 0:01:03.8]} 19. Bd2 {[%clk 0:01:20.1]} 19...
Qc8 {[%clk 0:00:59.3]} 20. Rae1 {[%clk 0:01:19.4]} 20... Qe8 {[%clk 0:00:48.8]}
21. Nd5 {[%clk 0:01:16.5]} 21... c6 {[%clk 0:00:41.7]} 22. Nxf6 {[%clk
0:01:11.4]} 22... Rxf6 {[%clk 0:00:39.9]} 23. Bc3 {[%clk 0:01:10.4]} 23... Rxf1+
{[%clk 0:00:35.4]} 24. Rxf1 {[%clk 0:01:10.7]} 24... Qg6 {[%clk 0:00:27.7]} 25.
Bxg7+ {[%clk 0:01:05.4]} 25... Kxg7 {[%clk 0:00:16]} 26. Rf7+ {[%clk 0:01:04.3]}
26... Kg8 {[%clk 0:00:16.5]} 27. Be4 {[%clk 0:00:37.6]} 27... Qxe6 {[%clk
0:00:14.9]} 28. Bd5 {[%clk 0:00:38.1]} 28... cxd5 {[%clk 0:00:12]} 29. Qh7#
{[%clk 0:00:36.9]} 1-0

[Event "*** Titled Tuesday Blitz"]
[Site "Chess.com"]
[Date "2020.12.29"]
[Round "1"]
[White "Skatchkov_V"]
[Black "MikeSailer"]
[Result "0-1"]
[WhiteElo "2492"]
[BlackElo "2134"]
[TimeControl "180+1"]
[EndTime "10:06:26 PST"]
[Termination "MikeSailer won by resignation"]

1. d4 {[%clk 0:02:56.6]} 1... d5 {[%clk 0:02:59.4]} 2. c4 {[%clk 0:02:56.9]}
2... Bf5 {[%clk 0:02:58.8]} 3. cxd5 {[%clk 0:02:56.6]} 3... Bxb1 {[%clk
0:02:56.8]} 4. Rxb1 {[%clk 0:02:57.4]} 4... Qxd5 {[%clk 0:02:55.5]} 5. Nf3
{[%clk 0:02:57.5]} 5... Nc6 {[%clk 0:02:49.2]} 6. a3 {[%clk 0:02:27.1]} 6...
O-O-O {[%clk 0:02:48.3]} 7. e3 {[%clk 0:01:57.3]} 7... e5 {[%clk 0:02:46.7]} 8.
Bd3 {[%clk 0:01:41]} 8... exd4 {[%clk 0:02:38.3]} 9. e4 {[%clk 0:01:40.9]} 9...
Qh5 {[%clk 0:02:33]} 10. b4 {[%clk 0:01:36.9]} 10... Bd6 {[%clk 0:02:21.8]} 11.
Bb2 {[%clk 0:01:35.7]} 11... Nf6 {[%clk 0:02:18.4]} 12. Qa4 {[%clk 0:01:25.4]}
12... Rhe8 {[%clk 0:02:07.5]} 13. O-O {[%clk 0:01:11.8]} 13... Nxe4 {[%clk
0:01:55.5]} 14. b5 {[%clk 0:01:10.4]} 14... Nc5 {[%clk 0:01:29.8]} 15. Qc2
{[%clk 0:01:03.2]} 15... Ne5 {[%clk 0:01:17.8]} 16. Nxe5 {[%clk 0:00:56.2]}
16... Bxe5 {[%clk 0:01:12.7]} 17. g3 {[%clk 0:00:56.2]} 17... Nxd3 {[%clk
0:01:04.5]} 18. Qxd3 {[%clk 0:00:57.1]} 18... Re6 {[%clk 0:01:01.4]} 19. f4
{[%clk 0:00:54.4]} 19... Rh6 {[%clk 0:00:55.1]} 20. Rf2 {[%clk 0:00:49.6]} 20...
Bd6 {[%clk 0:00:47]} 21. Rc1 {[%clk 0:00:49.7]} 21... g5 {[%clk 0:00:44.3]} 22.
Qf5+ {[%clk 0:00:46.2]} 22... Kb8 {[%clk 0:00:44.1]} 23. fxg5 {[%clk 0:00:46.6]}
23... Rg6 {[%clk 0:00:39.9]} 24. Qxf7 {[%clk 0:00:45]} 24... Qxg5 {[%clk
0:00:36.6]} 25. Re1 {[%clk 0:00:27.7]} 25... Bxg3 {[%clk 0:00:34.6]} 26. Rg2
{[%clk 0:00:26.5]} 26... Bxh2+ {[%clk 0:00:31.1]} 0-1

[Event "*** Titled Tuesday Blitz"]
[Site "Chess.com"]
[Date "2020.12.29"]
[Round "1"]
[White "Nuvas"]
[Black "ChessArchitect64"]
[Result "1-0"]
[WhiteElo "2501"]
[BlackElo "2090"]
[TimeControl "180+1"]
[EndTime "10:06:27 PST"]
[Termination "Nuvas won on time"]

1. d4 {[%clk 0:03:00.9]} 1... d5 {[%clk 0:02:59.4]} 2. c4 {[%clk 0:03:01.4]}
2... Nf6 {[%clk 0:02:58.8]} 3. cxd5 {[%clk 0:03:00]} 3... Nxd5 {[%clk
0:02:58.8]} 4. e4 {[%clk 0:03:00.5]} 4... Nf6 {[%clk 0:02:57.7]} 5. Nc3 {[%clk
0:03:00.9]} 5... e6 {[%clk 0:02:57.5]} 6. Nf3 {[%clk 0:03:00.2]} 6... Bb4 {[%clk
0:02:57.3]} 7. Qa4+ {[%clk 0:02:50.9]} 7... Nc6 {[%clk 0:02:54.2]} 8. Bd3 {[%clk
0:02:51.1]} 8... Bd7 {[%clk 0:02:46.9]} 9. Qc2 {[%clk 0:02:50.9]} 9... Be7
{[%clk 0:02:43.6]} 10. a3 {[%clk 0:02:49.4]} 10... Bc8 {[%clk 0:02:19.2]} 11.
Bb5 {[%clk 0:02:35]} 11... a6 {[%clk 0:02:14]} 12. Bxc6+ {[%clk 0:02:27.4]}
12... bxc6 {[%clk 0:02:13.7]} 13. O-O {[%clk 0:02:28.1]} 13... Bb7 {[%clk
0:02:12]} 14. Rd1 {[%clk 0:02:25.7]} 14... O-O {[%clk 0:02:10.1]} 15. Bg5 {[%clk
0:02:21.1]} 15... h6 {[%clk 0:02:06.8]} 16. Bxf6 {[%clk 0:02:21.3]} 16... Bxf6
{[%clk 0:02:05.4]} 17. Na4 {[%clk 0:02:21.6]} 17... Rb8 {[%clk 0:01:55.2]} 18.
Nc5 {[%clk 0:02:20.8]} 18... Bc8 {[%clk 0:01:52.7]} 19. b4 {[%clk 0:02:18.6]}
19... Qe8 {[%clk 0:01:39.4]} 20. Rac1 {[%clk 0:02:11.8]} 20... e5 {[%clk
0:01:34.2]} 21. dxe5 {[%clk 0:02:04.4]} 21... Bxe5 {[%clk 0:01:34.1]} 22. Nxe5
{[%clk 0:02:04.8]} 22... Qxe5 {[%clk 0:01:33.8]} 23. Qc4 {[%clk 0:01:59.4]}
23... Qb2 {[%clk 0:01:02.4]} 24. Rc3 {[%clk 0:01:21.7]} 24... Bg4 {[%clk
0:00:44.9]} 25. f3 {[%clk 0:01:06.2]} 25... Rbd8 {[%clk 0:00:39.2]} 26. Nd3
{[%clk 0:01:06.5]} 26... Rxd3 {[%clk 0:00:06.5]} 27. Rcxd3 {[%clk 0:00:57.1]}
27... Be6 {[%clk 0:00:06.2]} 28. Qc3 {[%clk 0:00:57.8]} 28... Qa2 {[%clk
0:00:02.8]} 29. R3d2 {[%clk 0:00:55.3]} 29... Qc4 {[%clk 0:00:02.5]} 30. Qxc4
{[%clk 0:00:55.8]} 30... Bxc4 {[%clk 0:00:02.8]} 31. Rd7 {[%clk 0:00:56]} 1-0